Workbook

Sheet Calculation
A1: Linear unit WH | D1: Sizing & selection | I1: 2015 02 03 JHj Release 2 | BF1: Distance carriage top to
A2: WH50 WH80 WH120 | U2: max stroke | X2: Min dist carriages | Y2: Fx max | Z2: Fy | AA2: Fz | AB2: Mx | AC2: My | AD2: Mz | AE2: Frd | AF2: Mta | AG2: Speed | AH2: Acc | AI2: Fx at this | AJ2: Carriage | AK2: Weight | AM2: preload | AN2: Wheel distance | AQ2: preload | AR2: C dyn | AS2: Da | AT2: pulley diameter | AV2: Pretension | AW2: Drive station | AY2: Tension station | BB2: Fr >= Fa | BD2: Fr < Fa | BF2: center | BL2: #
AI3: speed | AJ3: weight | AK3: 0 stroke | AL3: 100 mm | AM3: friction | AN3: Lx | AO3: Ly | AQ3: each wheel | AT3: Drive | AU3: tension | AV3: belt | AW3: Type | AX3: C | AY3: Type | AZ3: C | BB3: x | BC3: y | BD3: x | BE3: y | BF3: wheeles
A4: Customer | Q4: 1 | R4: =VLOOKUP(Q4,Q5:R7,2) -> WH50 | S4: =VLOOKUP(Q4,Q5:S7,3) -> 16ATL5 | T4: =VLOOKUP(Q4,Q5:T7,4) -> 120 | U4: =VLOOKUP($Q$4,$Q$5:U7,5) -> 3000 | V4: =VLOOKUP($Q$4,$Q$5:V7,6) -> 440 | W4: =VLOOKUP($Q$4,$Q$5:W7,7) -> 140 | X4: =VLOOKUP($Q$4,$Q$5:X7,8) -> 260 | Y4: =VLOOKUP($Q$4,$Q$5:Y7,9) -> 670 | Z4: =VLOOKUP($Q$4,$Q$5:Z7,10) -> 415 | AA4: =VLOOKUP($Q$4,$Q$5:AA7,11) -> 730 | AB4: =VLOOKUP($Q$4,$Q$5:AB7,12) -> 16 | AC4: =VLOOKUP($Q$4,$Q$5:AC7,13) -> 87 | AD4: =VLOOKUP($Q$4,$Q$5:AD7,14) -> 50 | AE4: =VLOOKUP($Q$4,$Q$5:AE7,15) -> 150 | AF4: =VLOOKUP($Q$4,$Q$5:AF7,16) -> 17 | AG4: =VLOOKUP($Q$4,$Q$5:AG7,17) -> 6.5 | AH4: =VLOOKUP($Q$4,$Q$5:AH7,18) -> 40 | AI4: =VLOOKUP($Q$4,$Q$5:AI7,19) -> 585 | AJ4: =VLOOKUP($Q$4,$Q$5:AJ7,20) -> 0.9 | AK4: =VLOOKUP($Q$4,$Q$5:AK7,21) -> 3.5 | AL4: =VLOOKUP($Q$4,$Q$5:AL7,22) -> 0.44 | AM4: =VLOOKUP($Q$4,$Q$5:AM7,23) -> 16 | AN4: =VLOOKUP($Q$4,$Q$5:AN7,24) -> 198 | AO4: =VLOOKUP($Q$4,$Q$5:AO7,25) -> 39 | AP4: =VLOOKUP($Q$4,$Q$5:AP7,26) -> WH05Z120 | AQ4: =VLOOKUP($Q$4,$Q$5:AQ7,27) -> 200 | AR4: =VLOOKUP($Q$4,$Q$5:AR7,28) -> 1630 | AS4: =VLOOKUP($Q$4,$Q$5:AS7,29) -> 15.8 | AT4: =VLOOKUP($Q$4,$Q$5:AT7,30) -> 38.2 | AU4: =VLOOKUP($Q$4,$Q$5:AU7,31) -> 38.2 | AV4: =VLOOKUP($Q$4,$Q$5:AV7,32) -> 650 | AW4: =VLOOKUP($Q$4,$Q$5:AW7,33) -> 61906 INA | AX4: =VLOOKUP($Q$4,$Q$5:AX7,34) -> 7000 | AY4: =VLOOKUP($Q$4,$Q$5:AY7,35) -> 609 SKF | AZ4: =VLOOKUP($Q$4,$Q$5:AZ7,36) -> 3710 | BA4: =VLOOKUP($Q$4,$Q$5:BA7,37) -> LFR50/5-6-2Z | BB4: =VLOOKUP($Q$4,$Q$5:BB7,38) -> 1 | BC4: =VLOOKUP($Q$4,$Q$5:BC7,39) -> 3.1 | BD4: =VLOOKUP($Q$4,$Q$5:BD7,40) -> 0.5 | BE4: =VLOOKUP($Q$4,$Q$5:BE7,41) -> 3.6 | BF4: =VLOOKUP($Q$4,$Q$5:BF7,42) -> 35
A5: Project | Q5: 1 | R5: WH50 | S5: 16ATL5 | T5: 120 | U5: 3,000 | V5: 440 | W5: 140 | X5: 260 | Y5: 670 | Z5: =IF(Q10=3,830,415) -> 415 | AA5: =IF(Q10=3,1460,730) -> 730 | AB5: =IF(Q10=3,32,16) -> 16 | AC5: =IF($Q$10=1,87,IF($Q$10=2,130,0.415*$G$16)) -> 87 | AD5: =IF($Q$10=1,50,IF($Q$10=2,75,0.73*$G$16)) -> 50 | AE5: 150 | AF5: 17 | AG5: 6.5 | AH5: 40 | AI5: =IF(C50<2,670-170/2*C50,540-170/6.5*C50) -> 585 | AJ5: =IF($Q$10=1,0.9,IF($Q$10=2,1.47,2*0.9)) -> 0.9 | AK5: 3.5 | AL5: 0.44 | AM5: =IF(Q10=3,32,16) -> 16 | AN5: =IF($Q$10=3,$G$16,IF(Q10=2,368,198)) -> 198 | AO5: 39 | AP5: WH05Z120 | AQ5: 200 | AR5: 1630 | AS5: 15.8 | AT5: 38.2 | AU5: 38.2 | AV5: 650 | AW5: 61906 INA | AX5: 7000 | AY5: 609 SKF | AZ5: 3710 | BA5: LFR50/5-6-2Z | BB5: 1 | BC5: 3.1 | BD5: 0.5 | BE5: 3.6 | BF5: 35
A6: Date | E6: Ref: | F6: xxx | Q6: 2 | R6: WH80 | S6: 32ATL10 | T6: 200 | U6: 11,000 | V6: 550 | W6: 170 | X6: 300 | Y6: 2700 | Z6: =IF(Q10=3,1764,882) -> 882 | AA6: =IF(Q10=3,4200,2100) -> 2100 | AB6: =IF(Q10=3,150,75) -> 75 | AC6: =IF($Q$10=1,230,IF($Q$10=2,345,0.882*$G$16)) -> 230 | AD6: =IF($Q$10=1,100,IF($Q$10=2,150,2.1*$G$16)) -> 100 | AE6: 500 | AF6: 100 | AG6: 10 | AH6: 40 | AI6: =IF(C50<=0.5,2700,IF(AND(C50>0.5,C50<3),2800-2800/10*C50,2300-900/10*C50)) -> 2520 | AJ6: =IF($Q$10=1,2.75,IF($Q$10=2,3.43,2*2.75)) -> 2.75 | AK6: 8.63 | AL6: 0.93 | AM6: =IF(Q10=3,40,20) -> 20 | AN6: =IF($Q$10=3,$G$16,IF(Q10=2,390,220)) -> 220 | AO6: 65 | AP6: WH08Z200 | AQ6: 500 | AR6: 4100 | AS6: 22.8 | AT6: 63.66 | AU6: 63.66 | AV6: 1350 | AW6: 6010 SKF | AX6: 21600 | AY6: 6204 SKF | AZ6: 12700 | BA6: LFR 50/8-6-2Z | BB6: 1 | BC6: 3.1 | BD6: 0.5 | BE6: 3.6 | BF6: 45
Q7: 3 | R7: WH120 | S7: 50ATL10 | T7: 260 | U7: 11,000 | V7: 605 | W7: 240 | X7: 300 | Y7: 5000 | Z7: =IF(Q10=3,9960,4980) -> 4980 | AA7: =IF(Q10=3,18600,9300) -> 9300 | AB7: =IF(Q10=3,1000,500) -> 500 | AC7: =IF($Q$10=1,930,IF($Q$10=2,1395,4.98*$G$16)) -> 930 | AD7: =IF($Q$10=1,500,IF($Q$10=2,750,9.3*$G$16)) -> 500 | AE7: 700 | AF7: 200 | AG7: 10 | AH7: 40 | AI7: =IF(C50<=1.5,5000,IF(AND(C50>1.5,C50<3.5),5500-3700/10*C50,4800-1700/10*C50)) -> 5000 | AJ7: =IF($Q$10=1,5.5,IF($Q$10=2,8.67,2*5.5)) -> 5.5 | AK7: 17 | AL7: 1.64 | AM7: =IF(Q10=3,60,30) -> 30 | AN7: =IF($Q$10=3,$G$16,IF(Q10=2,420,180)) -> 180 | AO7: 97 | AP7: WH12Z260 | AQ7: 2500 | AR7: 14500 | AS7: 44.25 | AT7: 82.76 | AU7: 82.76 | AV7: 2500 | AW7: 6011 SKF | AX7: 28100 | AY7: 6305 SKF | AZ7: 22500 | BA7: LFR5302-10-2Z | BB7: 1 | BC7: 2.7 | BD7: 0.5 | BE7: 3.2 | BF7: 67
A8: Linear drive unit:
B9: Size
Q10: 1 | S10: =IF(Q10=3,2,1) -> 1 | U10: =VLOOKUP(Q10,Q11:U13,5) -> 0 | V10: =VLOOKUP(Q10,Q11:V13,6) -> 0.9 | W10: =VLOOKUP(Q10,Q11:W13,7) -> N | X10: 1 | Y10: =IF(X10=1,1,0) -> 1
B11: Guidings | C11: Wheel guide | Q11: 1 | R11: N = Single standard carriage | U11: 0 | V11: =AJ4 -> 0.9 | W11: N | X11: 1 | Y11: Yes
B12: Drive mechanism | C12: Belt drive | E12: =S4 -> 16ATL5 | I12: =IF(G16<X4,"Too short"," ") ->  | Q12: 2 | R12: L = Single long carriage | U12: =W4 -> 140 | V12: =IF(Q4=1,1.47,IF(Q4=2,3.43,8.67)) -> 1.47 | W12: L | X12: 2 | Y12: No
B13: Move per rev | C13: =T4 -> 120 | D13: mm | F13: =IF(AND($K$20=3,$K$10<$K$21),"Min Lc ="," ") ->  | G13: =IF(AND($K$20=3,$K$10<$K$21),$K$21," ") ->  | H13: =IF(AND($K$20=3,$K$10<$K$21),"mm"," ") ->  | Q13: 3 | R13: Z = Double standard carriage | U13: =G16 -> 500 | V13: =2*AJ4 -> 1.8 | W13: Z
B14: Repeatability | C14: 0.05 | D14: mm | AA14: Configuration
Q15: 1 | R15: units | S15: =Q15-1 -> 0 | T15: 1 | W15: 2 | AA15: =IF(AND(Q15=1,T15=1,W15=1),1,IF(AND(Q15=2,T15=1,W15=1),2,IF(AND(Q15=1,T15=1,W15=2),3,IF(AND(Q15=2,T15=1,W15=2),4,IF(AND(Q15=1,T15=2),5,IF(AND(Q15=2,T15=2),6,"")))))) -> 3
B16: Saddle | E16: =IF(K20=2,"Not available"," ") ->  | F16: =IF(Q10=3,"LA ="," ") ->  | G16: 500 | H16: =IF(Q10=3,"mm","Only when C-saddle") -> Only when C-saddle | Q16: one single unit | T16: 1 | U16: Horizontal | W16: 1 | X16: =IF(T15=1,"Top or downward"," ") -> Top or downward | AA16: =R100 -> Horizontal mounting, single unit, carriage sideway
B17: Stroke | C17: 2000 | D17: mm | F17: Total length | G17: =C17+V4+U10 -> 2440 | H17: mm | Q17: two units in parallel | T17: 2 | U17: Vertical | W17: 2 | X17: =IF(T15=1,"Sideway"," ") -> Sideway
C18: =IF(C17>U4,"Longer than standard. Check with plant"," ") -> 
C19: Number of units | X19: Friction factor = | Y19: 0.01
A20: =IF(Q15=2,"Distance between linear units"," ") ->  | D20: 800 | Q20: Horizontal mounting, single unit, carriage at top | AE20: Radial F | AF20: Axial F | AH20: Fx at
Q21: Load torques caused by off center load | AB21: Max | AE21: at one wheel max | AH21: constant speed | AI21: Acceleration
C22: Weight of linear drive unit/-s | D22: =Q15*(AK4+AL4*(G17+IF(Q10=3,G16,0))/100+V10) -> 15.1 | E22: kg | G22: =IF(M31=0," ",IF(C25/2000>#REF!,"OK","Too much")) ->  | R22: Static | S22: Dynamic | T22: Totally | V22: Friction | Y22: Totally | AB22: allowed | AC22: % of max | AE22: N | AF22: N
F23: =IF(M31=0," ","Deflection") ->  | Q23: Mx = | R23: =$C$47*10*M48/1000 -> 0 | S23: 0 | T23: =Y10*R23+S23+C44 -> 0 | U23: Nm | V23: =T23/AO4*1000*Y19 -> 0.0 | Y23: Fx = | Z23: =C41+(C47+AJ4)*C51+AM4*S10+V31 -> 17 | AA23: N | AB23: =AI4 -> 585 | AH23: =C41+V31 -> 0.0 | AI23: =AH23+U126*2*G17/1000*C51+(C47+AJ4*S10)*C51 -> 1
B24: Mounting direction | Q24: My = | R24: =$C$47*10*M47/1000 -> 0 | S24: =C47*C51*M49/1000 -> 0 | T24: =Y10*R24+S24+C45 -> 0 | U24: Nm | V24: =T24/AN4*1000*Y19 -> 0.0 | Y24: Fy = | Z24: =C42 -> 0 | AA24: N | AB24: =Z4 -> 415 | AC24: =Z24/AB24 -> 0% | AE24: 0.0 | AF24: =Z24/4/S10 -> 0.0
Q25: Mz = | R25: 0 | S25: =C47*C51*M48/1000 -> 0 | T25: =Y10*R25+S25+C46 -> 0 | U25: Nm | V25: =T25/AN4*1000*Y19 -> 0.0 | Y25: Fz = | Z25: =C43+C47*10*Y10 -> 0 | AA25: N | AB25: =AA4 -> 730 | AC25: =Z25/AB25 -> 0% | AE25: =Z25/4/S10 -> 0.0 | AF25: 0.0
Y26: Mx = | Z26: =T23 -> 0 | AA26: Nm | AB26: =AB4 -> 16 | AC26: =Z26/AB26 -> 0% | AE26: =Z26/AO4*1000/2/S10 -> 0.0 | AF26: 0.0
Q27: Fy = | V27: =Z24*Y19 -> 0 | Y27: My = | Z27: =T24 -> 0 | AA27: Nm | AB27: =AC4 -> 87 | AC27: =Z27/AB27 -> 0% | AE27: =(Z27+C47*C50*BF4/1000)/AN4*1000/2/S10 -> 0.0 | AF27: 0.0
Q28: Fz = | V28: =Z25*Y19 -> 0 | Y28: Mz = | Z28: =T25 -> 0 | AA28: Nm | AB28: =AD4 -> 50 | AC28: =Z28/AB28 -> 0% | AE28: 0.0 | AF28: =Z28/AN4*1000/4/S10 -> 0.0
AB30: Totally | AC30: =SUM(AC24:AC29) -> 0% | AE30: =SUM(AE23:AE29) -> 0.0 | AF30: =SUM(AF23:AF29) -> 0.0
U31: Totally | V31: =SUM(V23:V30) -> 0.0 | W31: N
Q34: Horizontal mounting, 2 units, carriage at top | AE34: Radial F | AF34: Axial F
Q35: Load torques caused by off center load | AB35: Max | AE35: at one wheel max
R36: Static | S36: Dynamic | T36: Totally | V36: Friction | Y36: Totally | AB36: allowed | AC36: % of max | AE36: N | AF36: N
Q37: Mx = | R37: 0 | S37: 0 | T37: 0 | U37: Nm | V37: 0.0 | Y37: Fx = | Z37: =C41+C46/D20*1000+(C47+AJ4*2)*C51+V45+AM4*2*S10+V38/D20*1000 -> 34 | AA37: N | AB37: =2*AI4 -> 1170 | AH37: =C41+V45 -> 0.0 | AI37: =C41+(C47+AJ4*2*S10)*C51+V45+V38/D20*1000+2*U126*G17/1000*2*C51 -> 2
Q38: My = | R38: =C47*10*M47/1000 -> 0 | S38: =C47*C51*M49/1000 -> 0 | T38: =Y10*R38+S38+C45 -> 0 | U38: Nm | V38: =T38/AN4*1000*Y19 -> 0.0 | Y38: Fy = | Z38: =C42 -> 0 | AA38: N | AB38: =Z4*1 -> 415 | AC38: =Z38/AB38 -> 0% | AE38: 0 | AF38: =Z38/4/S10 -> 0
Q39: Mz = | R39: 0 | S39: =C47*C51*M48/1000 -> 0 | T39: =Y10*R39+S39+C46 -> 0 | U39: Nm | V39: 0.0 | Y39: Fz = | Z39: =C43+C47*10*Y10+C44/D20*1000*2 -> 0 | AA39: N | AB39: =AA4*2 -> 1460 | AC39: =Z39/AB39 -> 0% | AE39: =(C43/2+C47*10*(D20/2+M48)/D20+C44/D20*1000)/4/S10 -> 0.0
Y40: Mx = | Z40: =T37 -> 0 | AA40: Nm | AD40: Anser att Mx blir ett kraftpar som ökar Fz | BL40: Please note:
B41: Fx = | C41: 0 | D41: N | H41: =IF(T15=2," ","Orientation of carriage") -> Orientation of carriage | Q41: Fy = | V41: =C42*Y19 -> 0 | Y41: My = | Z41: =T38 -> 0 | AA41: Nm | AB41: =AC4*2 -> 174 | AC41: =Z41/AB41 -> 0% | AE41: =(Z41+C47*C50*BF4/1000)/AN4*1000/2/2/S10 -> 0 | BL41: Fx, Fy, Fz, Mx, My and Mz are external forces and torques and
B42: Fy = | C42: 0 | D42: N | Q42: Fz = | V42: =(C47*10+C42+C44/D20*1000+T38/AN4*1000)*Y19 -> 0.0 | Y42: Mz = | Z42: =T39 -> 0 | AA42: Nm | AD42: Anser att Mz blir ett kraftpar som ökar Fx | BL42: are not connected with or caused by "Total mass to move"
B43: Fz = | C43: 0 | D43: N
B44: Mx = | C44: 0 | D44: Nm | AB44: Totally | AC44: =SUM(AC38:AC43) -> 0% | AE44: =AE41+AE39 -> 0.0 | AF44: =AF38 -> 0
B45: My = | C45: 0 | D45: Nm | U45: Totally | V45: =SUM(V37:V44) -> 0.0 | W45: N
B46: Mz = | C46: 0 | D46: Nm | M46: ABS
B47: Total mass to move | C47: 0 | D47: kg in location from top of carriage | H47: Lx = | I47: 0 | J47: mm | M47: =ABS(I47) -> 0 | Q47: Horizontal mounting, single unit, carriage sideway | AE47: Radial F | AF47: Axial F
A48: Will this mass be carried by the carriage/carriages? | H48: Ly = | I48: 0 | J48: mm | M48: =ABS(I48) -> 0 | Q48: Load torques caused by off center load | AB48: Max | AE48: at one wheel max
H49: Lz = | I49: 0 | J49: mm | M49: 0 | R49: Static | S49: Dynamic | T49: Totally | V49: Friction | Y49: Totally | AB49: allowed | AC49: % of max | AE49: N | AF49: N
B50: Speed | C50: 1 | D50: m/s | E50: =IF(C50>AG4,"Too high speed"," ") ->  | Q50: Mx = | R50: =C47*10*M49/1000 -> 0 | S50: 0 | T50: =Y10*R50+C44 -> 0 | U50: Nm | V50: =T50/AO4*1000*Y19 -> 0.0 | Y50: Fx = | Z50: =C41+(C47+AJ4)*C51+AM4*S10+V58 -> 17 | AA50: N | AB50: =AI4 -> 585 | AH50: =C41+V58 -> 0.0 | AI50: =Z50+U126*2*G17/1000*C51 -> 17
B51: Acceleration | C51: 1 | D51: m/s² | E51: =IF(C51>40,"Too high acceleration"," ") ->  | Q51: My = | R51: 0 | S51: =C47*C51*M49/1000 -> 0 | T51: =S51+C45 -> 0 | U51: Nm | V51: =T51/AN4*1000*Y19 -> 0.0 | Y51: Fy = | Z51: =C42+Y10*C47*10 -> 0 | AA51: N | AB51: =Z4 -> 415 | AC51: =Z51/AB51 -> 0% | AF51: =Z51/4/S10 -> 0.0
Q52: Mz = | R52: =C47*10*M47/1000 -> 0 | S52: =C47*C51*M48/1000 -> 0 | T52: =Y10*R52+S52+C46 -> 0 | U52: Nm | V52: =T52/AN4*1000*Y19 -> 0.0 | Y52: Fz = | Z52: =C43 -> 0 | AA52: N | AB52: =AA4 -> 730 | AC52: =Z52/AB52 -> 0% | AE52: =Z52/4/S10 -> 0.0
A53: Move profile over | C53: 1500 | D53: mm stroke | F53: =IF(C53>C17,"This is longer than stroke of unit !"," ") ->  | Y53: Mx = | Z53: =T50 -> 0 | AA53: Nm | AB53: =AB4 -> 16 | AC53: =Z53/AB53 -> 0% | AE53: =(Z53+C47*10*BF4/1000)/AO4*1000/2/S10 -> 0.0
Q54: Fy = | V54: =Z51*Y19 -> 0 | Y54: My = | Z54: =T51 -> 0 | AA54: Nm | AB54: =AC4 -> 87 | AC54: =Z54/AB54 -> 0% | AE54: =(Z54+C47*C50*BF4/1000)/AN4*1000/2/S10 -> 0.0
A55: Time to move one direction | Q55: Fz = | V55: =C43*Y19 -> 0 | Y55: Mz = | Z55: =T52 -> 0 | AA55: Nm | AB55: =AD4 -> 50 | AC55: =Z55/AB55 -> 0% | AF55: =Z55/AN4*1000/2/S10 -> 0.0
C56: =Blad2!C14 -> 2.50 | D56: sec
AB57: Totally | AC57: =SUM(AC51:AC56) -> 0% | AE57: =SUM(AE52:AE56) -> 0.0 | AF57: =AF51+AF55 -> 0.0
A58: =Blad2!A17 ->  | U58: Totally | V58: =SUM(V50:V57) -> 0.0 | W58: N
A59: =Blad2!A18 ->  | C59: =Blad2!C18 ->  | D59: =Blad2!D18 -> 
Q60: Horizontal mounting, two units, carriages sideway | AE60: Radial F | AF60: Axial F
Q61: Load torques caused by off center load | AB61: Max | AE61: at one wheel max
R62: Static | S62: Dynamic | T62: Totally | V62: Friction | Y62: Totally | AB62: allowed | AC62: % of max | AE62: N | AF62: N
Q63: Mx = | R63: 0 | S63: 0 | T63: 0 | U63: Nm | V63: 0.0 | Y63: Fx = | Z63: =C41+V71+T65/D20*1000+(C47+AJ4*2*S10)*C51 -> 2 | AA63: N | AB63: =AI4*2 -> 1170 | AH63: =C41+V71 -> 0.0 | AI63: =AH63+(C47+AJ4*2*S10)*C51+U126*G17/1000*2*2*C51 -> 2 | AJ63: =IF(Q10=3,G16,AN4) -> 198
Q64: My = | R64: 0 | S64: =C47*C51*M49/1000 -> 0 | T64: =C45+S64 -> 0 | U64: Nm | V64: =T64/AN4*1000*Y19 -> 0.0 | Y64: Fy = | Z64: =C42+C47*10*Y10 -> 0 | AA64: N | AB64: =Z4 -> 415 | AC64: =Z64/AB64 -> 0% | AE64: 0 | AF64: =Z64/4/S10+Z68/AJ63*1000/2/S10 -> 0
Q65: Mz = | R65: =C47*10*M47/1000 -> 0 | S65: =C47*C51*M48/1000 -> 0 | T65: =Y10*R65+S65+C46 -> 0 | U65: Nm | V65: 0.0 | Y65: Fz = | Z65: =C43+Y10*C47*10*M49/1000/D20*1000+C44/D20*1000 -> 0 | AA65: N | AB65: =AA4*2 -> 1460 | AC65: =Z65/AB65 -> 0% | AE65: =(Z65+C47*10*BF4/D20)/4/S10 -> 0.0
Y66: Mx = | Z66: 0 | AA66: Nm | AB66: =AC17 -> 0 | AC66: 0% | AD66: Anser att Mx blir ett kraftpar som ökar Fz
Q67: Fy = | V67: =Z64*Y19 -> 0 | Y67: My = | Z67: =T64 -> 0 | AA67: Nm | AB67: =AC4*2 -> 174 | AC67: =Z67/AB67 -> 0% | AE67: =(Z67+C47*C50*BF4/1000)/AN4/4/S10*1000 -> 0.0
Q68: Fz = | V68: =(Y10*C47*10*M49/1000/D20*1000+C43)*Y19 -> 0 | Y68: Mz = | Z68: =T65 -> 0 | AA68: Nm | AB68: =AE17 -> 0 | AC68: 0% | AD68: Anser att Mz blir ett kraftpar som ökar Fx
A69: =R100 -> Horizontal mounting, single unit, carriage sideway
AB70: Totally | AC70: =SUM(AC64:AC69) -> 0% | AE70: =AE65+AE67 -> 0.0 | AF70: =AF64 -> 0
B71: Result: | D71: Allowed | U71: Totally | V71: =SUM(V63:V70) -> 0.0 | W71: N
A72: Fx = | B72: =X100 -> 17 | C72: N | D72: =Y100 -> 585 | E72: N | F72: =IF(B72>D72,"Too much !"," ") -> 
A73: Fy = | B73: =Z100 -> 0 | C73: N | D73: =AA100 -> 415 | E73: N | Q73: Vertical mounting, single unit | AE73: Radial F | AF73: Axial F
A74: Fz = | B74: =AB100 -> 0 | C74: N | D74: =AC100 -> 730 | E74: N | Q74: Load torques caused by off center load | AB74: Max | AE74: at one wheel max
A75: Mx = | B75: =AD100 -> 0 | C75: Nm | D75: =AE100 -> 16 | E75: Nm | R75: Static | S75: Dynamic | T75: Totally | V75: Friction | Y75: Totally | AB75: allowed | AC75: % of max | AE75: N | AF75: N
A76: My = | B76: =AF100 -> 0 | C76: Nm | D76: =AG100 -> 87 | E76: Nm | Q76: Mx = | R76: 0 | S76: 0 | T76: =C44 -> 0 | U76: Nm | V76: =T76/AO4*1000*Y19 -> 0.0 | Y76: Fx = | Z76: =C41+(C47+AJ4)*C51+AM4+V84+C47*10 -> 17 | AA76: N | AB76: =AI4 -> 585 | AH76: =C41+V84+AM4*S10+C47*10 -> 16 | AI76: =AH76+(AJ4*S10+C47)*C51+U126*G17*2/1000*C51 -> 17
A77: Mz = | B77: =AH100 -> 0 | C77: Nm | D77: =AI100 -> 50 | E77: Nm | Q77: My = | R77: =C47*10*M49/1000 -> 0 | S77: =C47*C51*M49/1000 -> 0 | T77: =Y10*R77+S77+C45 -> 0 | U77: Nm | V77: =T77/AN4*1000*Y19 -> 0.0 | Y77: Fy = | Z77: =C42 -> 0 | AA77: N | AB77: =Z4 -> 415 | AC77: =Z77/AB77 -> 0% | AF77: =Z77/4/S10 -> 0
F78: Total load combined all directions | G78: =AJ100 -> 0% | Q78: Mz = | R78: =C47*10*M48/1000 -> 0 | S78: =C47*C51*M48/1000 -> 0 | T78: =Y10*R78+S78+C46 -> 0 | U78: Nm | V78: =T78/AN4*1000*Y19 -> 0.0 | Y78: Fz = | Z78: =C43 -> 0 | AA78: N | AB78: =AA4 -> 730 | AC78: =Z78/AB78 -> 0% | AE78: =Z78/4/S10 -> 0
B79: =IF(AJ100>1,"The total load is too much ! Select bigger unit or another configuration.",IF(B72>D72,"The axial force is too much ! Select bigger unit or another configuration."," ")) ->  | Y79: Mx = | Z79: =T76 -> 0 | AA79: Nm | AB79: =AB4 -> 16 | AC79: =Z79/AB79 -> 0% | AE79: =Z79/AO4*1000/2/S10 -> 0.0
Q80: Fy = | V80: =C42*Y19 -> 0 | Y80: My = | Z80: =T77 -> 0 | AA80: Nm | AB80: =AC4 -> 87 | AC80: =Z80/AB80 -> 0% | AE80: =(Z80+C47*C50*BF4/1000)/AN4*1000/2/S10 -> 0.0
B81: Designation: | C81: =CONCATENATE(AP4,R109,S109,T109,U109,"x",W10,IF(Q10<3,"-0000",W110)) -> WH05Z120-02000-02440xN-0000 | Q81: Fz = | V81: =C43*Y19 -> 0 | Y81: Mz = | Z81: =T78 -> 0 | AA81: Nm | AB81: =AD4 -> 50 | AC81: =Z81/AB81 -> 0% | AF81: =Z81/AN4/4*1000/S10 -> 0.0
B83: Calculation of lifetime | AB83: Totally | AC83: =SUM(AC77:AC82) -> 0% | AE83: =SUM(AE78:AE82) -> 0.0 | AF83: =AF81+AF77 -> 0.0
U84: Totally | V84: =SUM(V76:V83) -> 0.0 | W84: N
C85: Average load factor fm | D85: 1
C86: Track roller / wheel | D86: =IF(AG121<100000,AG121,"> 100 000") -> 7,464 | E86: h | F86: =D86*3600*$C$50/1000 -> 26,871 | G86: km | Q86: Vertical mounting, two units | AE86: Radial F | AF86: Axial F
C87: Ball bearing drive station | D87: =IF(AG116<100000,AG116,"> 100 000") -> 30,198 | E87: h | F87: =D87*3600*$C$50/1000 -> 108,713 | G87: km | Q87: Load torques caused by off center load | AB87: Max | AE87: at one wheel max
C88: Ball bearing tension station | D88: =IF(AG117<100000,AG117,"> 100 000") -> 4,342 | E88: h | F88: 15,631 | G88: km | R88: Static | S88: Dynamic | T88: Totally | V88: Friction | Y88: Totally | AB88: allowed | AC88: % of max | AE88: N | AF88: N
Q89: Mx = | R89: 0 | S89: 0 | T89: 0 | U89: Nm | V89: =C44/D20*1000*Y19 -> 0.0 | Y89: Fx = | Z89: =C41+C47*10+2*AJ4+2*AM4+T91/D20*1000+(C47+2*AJ4)*C51 -> 36 | AA89: N | AB89: =AI4*2 -> 1170 | AH89: =C41+C47*10+V97+AJ4*10*2*S10 -> 18 | AI89: =AH89+(C47+AJ4*2*S10+U126*G17/1000*2*2)*C51 -> 20
C90: number of cycles per minute | D90: 1 | F90: Duty cycle | G90: =D90*2*C56/60 -> 8% | H90: =IF(G90>1,"Not possible !"," ") ->  | Q90: My = | R90: =C47*M49*10/1000 -> 0 | S90: =C47*C51*M49/1000 -> 0 | T90: =Y10*R90+S90+C45 -> 0 | U90: Nm | V90: =T90/AN4*1000*Y19 -> 0.0 | Y90: Fy = | Z90: =C42 -> 0 | AA90: N | AB90: =Z4 -> 415 | AC90: =Z90/AB90 -> 0% | AF90: =Z90/S10/4 -> 0
C91: Working hours per day | D91: 8 | Q91: Mz = | R91: =C47*10*M48/1000 -> 0 | S91: =C47*C51*M48/1000 -> 0 | T91: =Y10*R91+S91+C46 -> 0 | U91: Nm | V91: 0.0 | Y91: Fz = | Z91: =C43+C44/D20*1000*2 -> 0 | AA91: N | AB91: =AA4*2 -> 1460 | AC91: =Z91/AB91 -> 0% | AE91: =Z91/8/S10 -> 0.0
C92: Working days per year | D92: 224 | Y92: Mx = | Z92: 0 | AA92: Nm | AB92: =AB43 -> 0 | AC92: 0% | AD92: Anser att Mx blir ett kraftpar som ökar Fz
Q93: Fy = | V93: =C42*Y19 -> 0 | Y93: My = | Z93: =T90 -> 0 | AA93: Nm | AB93: =AC4*2 -> 174 | AC93: =Z93/AB93 -> 0% | AE93: =(Z93+C47*C50*BF4/1000)/AN4*1000/4/S10 -> 0.0
C94: Lifetime | D94: =IF(F86*10^6/C53/2/D90/60/D91/D92>50,"> 50",F86*10^6/C53/2/D90/60/D91/D92) -> > 50 | E94: Years | F94: Track roller / wheel | Q94: Fz = | V94: =Z91*Y19 -> 0 | Y94: Mz = | Z94: =T91 -> 0 | AA94: Nm | AB94: =AD4 -> 50 | AC94: 0% | AD94: Anser att Mz blir ett kraftpar som ökar Fx
D95: =IF(AK116>50,"> 50",AK116) -> > 50 | E95: Years | F95: Ball bearing drive station
D96: =IF(AK117>50,"> 50",AK117) -> 48.5 | E96: Years | F96: Ball bearing tension station | AB96: Totally | AC96: =SUM(AC90:AC95) -> 0% | AE96: =AE91+AE93 -> 0.0 | AF96: =AF90 -> 0
U97: Totally | V97: =SUM(V89:V96) -> 0.0 | W97: N | AM97: Total Fx at const speed | AN97: Total Fx during acc
AK98: Each wheel
C99: Idle torque at no load | D99: =N133 -> 1.88 | E99: Nm and | F99: =R113 -> 500 | G99: rpm at | H99: =C50 -> 1 | I99: m/s | X99: Fx | Z99: Fy | AB99: Fz | AD99: Mx | AF99: My | AH99: Mz | AJ99: Total | AK99: F rad | AL99: F axial
R100: =VLOOKUP($AA$15,$Q$101:R106,2) -> Horizontal mounting, single unit, carriage sideway | S100: =VLOOKUP($AA$15,$Q$101:S106,2) -> Horizontal mounting, single unit, carriage sideway | X100: =VLOOKUP($AA$15,$Q$101:X106,8) -> 17 | Y100: =VLOOKUP($AA$15,$Q$101:Y106,9) -> 585 | Z100: =VLOOKUP($AA$15,$Q$101:Z106,10) -> 0 | AA100: =VLOOKUP($AA$15,$Q$101:AA106,11) -> 415 | AB100: =VLOOKUP($AA$15,$Q$101:AB106,12) -> 0 | AC100: =VLOOKUP($AA$15,$Q$101:AC106,13) -> 730 | AD100: =VLOOKUP($AA$15,$Q$101:AD106,14) -> 0 | AE100: =VLOOKUP($AA$15,$Q$101:AE106,15) -> 16 | AF100: =VLOOKUP($AA$15,$Q$101:AF106,16) -> 0 | AG100: =VLOOKUP($AA$15,$Q$101:AG106,17) -> 87 | AH100: =VLOOKUP($AA$15,$Q$101:AH106,18) -> 0 | AI100: =VLOOKUP($AA$15,$Q$101:AI106,19) -> 50 | AJ100: =VLOOKUP($AA$15,$Q$101:AJ106,20) -> 0% | AK100: =VLOOKUP($AA$15,$Q$101:AK106,21) -> 200.0 | AL100: =VLOOKUP($AA$15,$Q$101:AL106,22) -> 0.0 | AM100: =VLOOKUP($AA$15,$Q$101:AM106,23) -> 0.0 | AN100: =VLOOKUP($AA$15,$Q$101:AN106,24) -> 17.2
C101: Drive torque at constant speed | D101: =P142 -> 1.88 | E101: Nm and | F101: =D101*R113/9.55 -> 98 | G101: W | Q101: 1 | R101: Horizontal mounting, single unit, carriage at top | X101: =Z23 -> 17 | Y101: =AB23 -> 585 | Z101: =Z24 -> 0 | AA101: =AB24 -> 415 | AB101: =Z25 -> 0 | AC101: =AB25 -> 730 | AD101: =Z26 -> 0 | AE101: =AB26 -> 16 | AF101: =Z27 -> 0 | AG101: =AB27 -> 87 | AH101: =Z28 -> 0 | AI101: =AB28 -> 50 | AJ101: =AC30 -> 0% | AK101: =AQ4+AE30 -> 200.0 | AL101: =AF30 -> 0.0 | AM101: =AH23 -> 0.0 | AN101: =AI23 -> 1.2
C102: Drive torque during acc | D102: =P143 -> 2.21 | E102: Nm and | F102: =D102*R113/9.55 -> 116 | G102: W | Q102: 2 | R102: Horizontal mounting, 2 units, carriage at top | X102: =Z37 -> 34 | Y102: =AB37 -> 1170 | Z102: =Z38 -> 0 | AA102: =AB38 -> 415 | AB102: =Z39 -> 0 | AC102: =AB39 -> 1460 | AD102: =IF(Z40=0," - ",Z40) -> - | AE102: =IF(AB40=0," - ",AB40) -> - | AF102: =Z41 -> 0 | AG102: =AB41 -> 174 | AH102: =Z42 -> 0 | AI102: =IF(AB42=0," - ",AB42) -> - | AJ102: =AC44 -> 0% | AK102: =AQ4+AE44 -> 200.0 | AL102: =AF44 -> 0 | AM102: =AH37 -> 0.0 | AN102: =AI37 -> 2.3
C103: System inertia | D103: =S153 -> 0.0004629325471 | E103: kg m² (excluding gear, motor etc) | Q103: 3 | R103: Horizontal mounting, single unit, carriage sideway | X103: =Z50 -> 17 | Y103: =AB50 -> 585 | Z103: =Z51 -> 0 | AA103: =AB51 -> 415 | AB103: =Z52 -> 0 | AC103: =AB52 -> 730 | AD103: =Z53 -> 0 | AE103: =AB53 -> 16 | AF103: =Z54 -> 0 | AG103: =AB54 -> 87 | AH103: =Z55 -> 0 | AI103: =AB55 -> 50 | AJ103: =AC57 -> 0% | AK103: =AQ4+AE57 -> 200.0 | AL103: =AF57 -> 0.0 | AM103: =AH50 -> 0.0 | AN103: =AI50 -> 17.2
B104: =IF(AND(Q15=1,P143>AC126),"Too high drive torque",IF(AND(Q15=2,P143>2*AC126),"Too high drive torque",IF(AND(Q15=2,P143>AC126),"Central mounting of motor/gear required"," "))) ->  | Q104: 4 | R104: Horizontal mounting, two units, carriages sideway | X104: =Z63 -> 2 | Y104: =AB63 -> 1170 | Z104: =Z64 -> 0 | AA104: =AB64 -> 415 | AB104: =Z65 -> 0 | AC104: =AB65 -> 1460 | AD104: =IF(Z66=0," - ",Z66) -> - | AE104: =IF(AB66=0," - ",AB66) -> - | AF104: =Z67 -> 0 | AG104: =AB67 -> 174 | AH104: =Z68 -> 0 | AI104: =IF(AB68=0," - ",AB68) -> - | AJ104: =AC70 -> 0% | AK104: =AQ4+AE70 -> 200.0 | AL104: =AF70 -> 0 | AM104: =AH63 -> 0.0 | AN104: =AI63 -> 2.3
Q105: 5 | R105: Vertical mounting, single unit | X105: =Z76 -> 17 | Y105: =AB76 -> 585 | Z105: =Z77 -> 0 | AA105: =AB77 -> 415 | AB105: =Z78 -> 0 | AC105: =AB78 -> 730 | AD105: =Z79 -> 0 | AE105: =AB79 -> 16 | AF105: =Z80 -> 0 | AG105: =AB80 -> 87 | AH105: =Z81 -> 0 | AI105: =AB81 -> 50 | AJ105: =AC83 -> 0% | AK105: =AQ4+AE83 -> 200.0 | AL105: =AF83 -> 0.0 | AM105: =AH76 -> 16 | AN105: =AI76 -> 17.2
B106: Gear / Motor | Q106: 6 | R106: Vertical mounting, two units | X106: =Z89 -> 36 | Y106: =AB89 -> 1170 | Z106: =Z90 -> 0 | AA106: =AB90 -> 415 | AB106: =Z91 -> 0 | AC106: =AB91 -> 1460 | AD106: =IF(Z92=0," - ",Z92) -> - | AE106: =IF(AB92=0," - ",AB92) -> - | AF106: =Z93 -> 0 | AG106: =AB93 -> 174 | AH106: =Z94 -> 0 | AI106: =AB94 -> 50 | AJ106: =AC96 -> 0% | AK106: =AQ4+AE96 -> 200.0 | AL106: =AF96 -> 0 | AM106: =AH89 -> 18 | AN106: =AI89 -> 20.3
C109: =IF($L$250=2,"Ratio"," ") -> Ratio | D109: 4 | R109: =IF(S109<1000,"-00",IF(S109<10000,"-0","-")) -> -0 | S109: =C17 -> 2000 | T109: =IF(U109<1000,"-00",IF(U109<10000,"-0","-")) -> -0 | U109: =G17 -> 2440 | V109: =IF(W109<1000,"-0","-") -> -0 | W109: =G16 -> 500
C110: =IF($L$250=2,"Effiency factor"," ") -> Effiency factor | D110: 90% | W110: =CONCATENATE(V109,W109) -> -0500
C111: =IF($L$250=2,"Idle torque"," ") -> Idle torque | D111: 0.1 | E111: =IF($L$250=2,"Nm"," ") -> Nm
C112: =IF($L$250=2,"Inertia"," ") -> Inertia | D112: 5e-05 | E112: =IF($L$250=2,"kg m²"," ") -> kg m² | Q112: rpm wheels | R112: =$C$50*1000/AS4/PI()*60 -> 1209
Q113: rpm drive wheel | R113: =$C$50*1000/AT4/PI()*60 -> 500 | T113: motor speed | U113: =R113*IF(L250=1,1,D109) -> 1999.852688
Q114: rpm tension wheel | R114: =$C$50*1000/AU4/PI()*60 -> 500
Q116: Force at drive pulley equally shared on two ball bearings. Total force( 2 x 1,1 x pretension belt) + Fx | AB116: =(2*1.1*AV4+X100)/2 -> 723 | AC116: N / bearing | AE116: Lifetime ball bearing | AG116: =(AX4/AB116)^3*10^6/R113/60 -> 30198 | AH116: h | AI116: =AG116*3600*$C$50/1000 -> 108,713 | AJ116: km | AK116: =AI116*1000/$C$53/2*1000/$D$90/60/$D$91/$D$92 -> 337.0321123
C117: =IF(OR(L254=2,L254=3),"Nominal torque",IF(L254=4,"Holding torque"," ")) -> Nominal torque | D117: =IF(L254=2,Q194,IF(L254=3,R165,IF(L254=4,O222," "))) -> 15.6 | E117: =IF(L254=2,"Nm",IF(L254=3,"Nm at max speed",IF(L254=4,"Nm"," "))) -> Nm at max speed | Q117: Force at tensioning wheel equally shared on two ball bearings. Total force (2 x 1,1 x pretension belt) + (2 x Fx) | AB117: =(2*1.1*AV4+2*X100)/2 -> 732 | AC117: N / bearing | AE117: Lifetime ball bearing | AG117: =(AZ4/AB117)^3*10^6/R114/60 -> 4342 | AH117: h | AI117: =AG117*3600*$C$50/1000 -> 15,631 | AJ117: km | AK117: =AI117*1000/$C$53/2*1000/$D$90/60/$D$91/$D$92 -> 48.45841585
C118: =IF($L$254=2,"Nominal speed",IF($L$254=3,"Peak torque"," ")) -> Peak torque | D118: =IF(L254=2,O194,IF(L254=3,S165," ")) -> 54.1 | E118: =IF($L$254=2,"rpm",IF($L$254=3,"Nm"," ")) -> Nm
C119: =IF($L$254=2,"Nominal power",IF($L$254=3,"Max speed"," ")) -> Max speed | D119: =IF(L254=2,P194,IF(L254=3,O165," ")) -> 3000 | E119: =IF($L$254=2,"kW",IF($L$254=3,"rpm"," ")) -> rpm | Q119: Max radial load wheel Fr | T119: =AK100 -> 200.0 | V119: Calculation equivalent load P = x*Fr + y*Fa | AA119: x = | AB119: =IF(T119>=T120,BB4,BD4) -> 1
C120: =IF(L254=3,"Nominal power"," ") -> Nominal power | D120: =IF(L254=3,P165," ") -> 4.9 | E120: =IF(L254=3,"kW"," ") -> kW | Q120: Max axial load wheel Fa | T120: =AL100 -> 0.0 | AA120: y = | AB120: =IF(T119>=T120,BC4,BE4) -> 3.1
C121: =IF(L254=5,"Customer motor data:"," ") ->  | D121: Supplier, torque, power, rpm etc | AA121: P = | AB121: =AB119*T119+AB120*T120 -> 200 | AE121: Lifetime wheel | AG121: =(AR4/AB121/D85)^3*10^6/R112/60 -> 7464 | AH121: h
U124: Belt weight | W124: Pulley width | Y124: VWZ shaft / coupling | AC124: Max
C125: =IF(L254=5,"Motor inertia:"," ") ->  | D125: 0.0003 | E125: =IF(L254=5,"kg m²"," ") ->  | O125: Idle torque | U125: kg/m | V125: kg | W125: drive mm | X125: tension | AB125: kg m² | AC125: torque
M126: =Q4 -> 1 | N126: =VLOOKUP($M$126,$M$127:T129,2) -> WH50 | O126: =VLOOKUP($M$126,$M$127:U129,3) -> 150 | P126: =VLOOKUP($M$126,$M$127:U129,4) -> 1500 | Q126: =VLOOKUP($M$126,$M$127:U129,5) -> 3250 | R126: =VLOOKUP($M$126,$M$127:V129,6) -> 1.7 | S126: =VLOOKUP($M$126,$M$127:W129,7) -> 2.4 | T126: =VLOOKUP($M$126,$M$127:X129,8) -> 3.8 | U126: =VLOOKUP($M$126,$M$127:Y129,9) -> 0.055 | V126: =U126*G17/1000*2 -> 0.2684 | W126: =VLOOKUP($M$126,$M$127:AA129,11) -> 45 | X126: =VLOOKUP($M$126,$M$127:AB129,12) -> 20 | Y126: =VLOOKUP($M$126,$M$127:AC129,13) -> 0.0008 | Z126: =VLOOKUP($M$126,$M$127:AD129,14) -> 0.00024 | AA126: =VLOOKUP($M$126,$M$127:AE129,15) -> GS14 | AB126: =VLOOKUP($M$126,$M$127:AF129,16) -> 6.5e-06 | AC126: =VLOOKUP($M$126,$M$127:AG129,17) -> 17
B127: Required motor data | M127: 1 | N127: WH50 | O127: 150 | P127: 1500 | Q127: 3250 | R127: 1.7 | S127: 2.4 | T127: 3.8 | U127: 0.055 | W127: 45 | X127: 20 | Y127: 0.0008 | Z127: 0.00024 | AA127: GS14 | AB127: =0.0000065 -> 6.5e-06 | AC127: 17
C128: Torque at constant speed | D128: =V142 -> 0.62 | E128: Nm | M128: 2 | N128: WH80 | O128: 150 | P128: 1500 | Q128: 3000 | R128: 2.4 | S128: 3.5 | T128: 5 | U128: 0.21 | W128: 70 | X128: 37 | Y128: 0.0008 | Z128: 0.00046 | AA128: GS19 | AB128: 0.000121 | AC128: 100
C129: Torque during acceleration | D129: =V143 -> 1.31 | E129: Nm | M129: 3 | N129: WH120 | O129: 150 | P129: 1500 | Q129: 2308 | R129: 4.85 | S129: 7 | T129: 10 | U129: 0.34 | W129: 110 | X129: 56 | Y129: 0.0058 | Z129: 0.006 | AA129: GS24 | AB129: 0.000466 | AC129: 200
C130: Power at constant speed | D130: =D128*D132/9550 -> 0.13 | E130: kW
C131: Power during acceleration | D131: =D129*D132/9550 -> 0.27 | E131: kW | F131: =D132/D118*50 -> 1,848 | G131: =IF(L254=2,"Hz"," ") ->  | L131: Idle torque Nm | N131: =IF(R113<=150,R126,IF(AND(R113>150,R113<=1500),R126+(R113-150)/1350*(S126-R126),S126+(R113-1500)/(Q126-1500)*(T126-S126))) -> 1.88 | O131: Single unit, single carriage
C132: Max speed | D132: =U113 -> 2,000 | E132: rpm | N132: =(S10-1)*AM4*AT4/2/1000 -> 0.00 | O132: additional carriage
C133: Inertia balance | D133: =R159 -> 1.0 | M133: Totally | N133: =(N132+N131)*Q15 -> 1.88 | O133: Nm
A135: Notes:
L142: Drive torque during constant speed | P142: =N133+AM100*AT4/2/1000 -> 1.881462385 | Q142: Nm | R142: Motor torque during costant speed | V142: =IF(L250=1,P142/0.99,P142/D109/D110+D111) -> 0.6226284404 | W142: Nm | Y142: Här är lite frågetecken, eller nej?
L143: Drive torque during acceleration | P143: =N133+AN100*AT4/2/1000 -> 2.209378825 | Q143: Nm | R143: Motor torque duringacceleration | V143: =AC152+V142 -> 1.310 | W143: Nm including inertia and losses in gear
P145: =P143-P142 -> 0.32791644
AA147: Drive | AC147: motor | AF147: Guide for selection of fm factor
AA148: shaft | AC148: shaft | AF148: fm = 1,0 ; The same load in both directions
L149: Linear inertia from load, carries and belt: | Q149: m x ( m/min / 2π / rpm ) ^2 = | T149: =(V126+C47+AJ4*S10*Q15)*(C50*60/2/PI()/R113)^2 -> 0.000426244004 | U149: kg m² | Y149: Inertia | AA149: =S153 -> 0.0004629325471 | AB149: kgm² | AC149: =IF(L250=1,S153+T154+T156,(S153+T154)/D109^2/D110+T155+T156) -> 0.003282599482 | AD149: kgm² | AF149: fm = 0,89 ; Load forward, 75% load back
L150: Inertia drive pulley | N150: J = m / 2 x R² | T150: =PI()*AT4^2/4*W126*2.7/10^6/2*(AT4/2/1000)^2*Q15 -> 0.000025 | U150: kg m² | Y150: Top speed | AA150: =R113 -> 500 | AB150: rpm | AC150: =U113 -> 2000 | AD150: rpm | AF150: fm = 0,81 ; Load forward, 50% load back
L151: Inertia tension pulley | T151: =PI()*AU4^2/4*X126*2.7/10^6/2*(AU4/2/1000)^2*Q15 -> 1.128878251e-05 | U151: kg m² | Y151: Acceleration time | AA151: =C50/C51 -> 1 | AB151: sec | AC151: =AA151 -> 1 | AD151: sec | AF151: fm = 0,8 ; Load forward, no load back
L152: Parallel shaft VWZ- | T152: =S15*(Y126*D20/1000+2*Z126) -> 0 | U152: kg m² | AA152: =AA149*3.14*AA150/30/AA151 -> 0.024 | AB152: Nm | AC152: =AC149*3.14*AC150/30/AC151 -> 0.687 | AD152: Nm | AF152: fm = 0,48 ; Full load 10% of the stroke forward and 20% rest of cycle
S153: =SUM(T149:T152) -> 0.0004629325471
L154: Inertia coupling | T154: =AB126 -> 6.5e-06
L155: Inertia gear | T155: =IF(L250=2,D112,0) -> 5e-05
L156: Inertia motor | T156: =IF(L254=1,0,IF(L254=2,R194,IF(L254=3,V165,IF(L254=4,P222,IF(L254=5,D125,0))))) -> 0.0032
M158: Total inertia reduced to motor shaft | S158: =(S153+T154)/IF(L250=1,1,D109^2)+T155+T156 -> 0.003279339534
M159: Inertia balance | R159: =S158/T156 -> 1.024793604
L162: 1 | M162: 2 | N162: 3 | O162: 4 | P162: 5 | Q162: 6 | R162: 7 | S162: 8 | T162: 9 | U162: 10 | V162: 11 | W162: 12 | X162: 13 | Y162: 14
M164: AKM servo motor | O164: nom rpm | P164: kW | Q164: nom Nm | R164: Nm at max rpm | S164: Peak Nm | T164: Inertia | U164: Brake inertia | W164: Nm/A | X164: mVmin | Y164: Ohm
M165: =VLOOKUP($L$262,$L$166:M189,M$162) -> AKM64L | N165: =VLOOKUP($L$262,$L$166:N189,N162) -> 0 | O165: =VLOOKUP($L$262,$L$166:O189,O162) -> 3000 | P165: =VLOOKUP($L$262,$L$166:P189,P162) -> 4.9 | Q165: =VLOOKUP($L$262,$L$166:Q189,Q162) -> 21 | R165: =VLOOKUP($L$262,$L$166:R189,R162) -> 15.6 | S165: =VLOOKUP($L$262,$L$166:S189,S162) -> 54.1 | T165: =VLOOKUP($L$262,$L$166:T189,T162) -> 0.0032 | U165: =VLOOKUP($L$262,$L$166:U189,U162) -> 6.1e-05 | V165: =VLOOKUP($L$262,$L$166:V189,V162) -> 0.0032 | W165: =VLOOKUP($L$262,$L$166:W189,W162) -> 1.66 | X165: =VLOOKUP($L$262,$L$166:X189,X162) -> 107 | Y165: =VLOOKUP($L$262,$L$166:Y189,Y162) -> 0.71
L166: 1 | M166: AKM31C | O166: 5000 | P166: 0.52 | Q166: 1.15 | R166: 1 | S166: 3.88 | T166: 3.3e-05 | U166: 1.2e-06 | V166: =IF($O$254=2,T166+U166,T166) -> 3.3e-05 | W166: 0.85 | X166: 54.5 | Y166: 21.4
L167: 2 | M167: AKM32C | O167: 3000 | P167: 0.58 | Q167: 2 | R167: 1.86 | S167: 6.92 | T167: 5.9e-05 | U167: 1.2e-06 | V167: 5.9e-05 | W167: 1.4 | X167: 89.8 | Y167: 23
L168: 3 | M168: AKM33E | O168: 4500 | P168: 1.1 | Q168: 2.79 | R168: 2.34 | S168: 9.96 | T168: 0.000085 | U168: 1.2e-06 | V168: 8.5e-05 | W168: 1.1 | X168: 70.6 | Y168: 8.36
L169: 4 | M169: AKM41C | O169: 3000 | P169: 0.56 | Q169: 1.95 | R169: 1.77 | S169: 6.12 | T169: 8.1e-05 | U169: 6.8e-06 | V169: 8.1e-05 | W169: 1.34 | X169: 86.3 | Y169: 21.7
L170: 5 | M170: AKM42E | O170: 3500 | P170: 1.03 | Q170: 3.42 | R170: 2.81 | S170: 11.3 | T170: 0.00015 | U170: 6.8e-06 | V170: 0.00015 | W170: 1.26 | X170: 80.9 | Y170: 7.22
L171: 6 | M171: AKM43E | O171: 2500 | P171: 1.03 | Q171: 4.7 | R171: 3.92 | S171: 15.9 | T171: 0.00021 | U171: 6.8e-06 | V171: 0.00021 | W171: 1.72 | X171: 111 | Y171: 8.04
L172: 7 | M172: AKM44G | O172: 4000 | P172: 1.57 | Q172: 5.88 | R172: 3.76 | S172: 20.2 | T172: 0.00027 | U172: 6.8e-06 | V172: 0.00027 | W172: 1.19 | X172: 76.6 | Y172: 2.65
L173: 8 | M173: AKM51E | O173: 2500 | P173: 1.04 | Q173: 4.7 | R173: 3.98 | S173: 11.6 | T173: 0.00034 | U173: 1.7e-05 | V173: 0.00034 | W173: 1.72 | X173: 110 | Y173: 8.47
L174: 9 | M174: AKM52G | O174: 2500 | P174: 1.85 | Q174: 8.43 | R174: 7.06 | S174: 21.5 | T174: 0.00062 | U174: 1.7e-05 | V174: 0.00062 | W174: 1.79 | X174: 115 | Y174: 3.47
L175: 10 | M175: AKM53K | O175: 4000 | P175: 3.2 | Q175: 11.6 | R175: 7.65 | S175: 30.1 | T175: 0.00091 | U175: 1.7e-05 | V175: 0.00091 | W175: 1.24 | X175: 79.8 | Y175: 1
L176: 11 | M176: AKM54K | O176: 3500 | P176: 3.68 | Q176: 14.4 | R176: 10.05 | S176: 38.4 | T176: 0.0012 | U176: 1.7e-05 | V176: 0.0012 | W176: 1.5 | X176: 96.6 | Y176: 1.02
L177: 12 | M177: AKM62K | O177: 3500 | P177: 3.3 | Q177: 12.2 | R177: 9 | S177: 30.1 | T177: 0.0017 | U177: 6.1e-05 | V177: 0.0017 | W177: 1.28 | X177: 82.1 | Y177: 1.05
L178: 13 | M178: AKM63K | O178: 3000 | P178: 4.05 | Q178: 16.8 | R178: 12.9 | S178: 42.6 | T178: 0.0024 | U178: 6.1e-05 | V178: 0.0024 | W178: 1.71 | X178: 110 | Y178: 1.09
L179: 14 | M179: AKM64L | O179: 3000 | P179: 4.9 | Q179: 21 | R179: 15.6 | S179: 54.1 | T179: 0.0032 | U179: 6.1e-05 | V179: 0.0032 | W179: 1.66 | X179: 107 | Y179: 0.71
L180: 15 | M180: AKM65M | O180: 2500 | P180: 5.03 | Q180: 25 | R180: 19.2 | S180: 65.2 | T180: 0.004 | U180: 6.1e-05 | V180: 0.004 | W180: 1.85 | X180: 119 | Y180: 0.68
L181: 16
L182: 17
L183: 18
L184: 19
L185: 20
L186: 21
L187: 22
L188: 23
L189: 24
M193: AC motors | O193: rpm | P193: kW | Q193: Nm | R193: Kgm2
M194: =VLOOKUP($L$262,$L$195:M218,M$162) -> IEC90 with brake 3000 rpm 2,2 kW | N194: =VLOOKUP($L$262,$L$195:N218,N$162) -> 0 | O194: =VLOOKUP($L$262,$L$195:O218,O$162) -> 2850 | P194: =VLOOKUP($L$262,$L$195:P218,P$162) -> 2.2 | Q194: =VLOOKUP($L$262,$L$195:Q218,Q$162) -> 7.518843509 | R194: =VLOOKUP($L$262,$L$195:R218,R$162) -> 0.00181
L195: 1 | M195: IEC 63 3000 rpm 0,25 kW | O195: 2750 | P195: 0.25 | Q195: =71620*1.36*P195/O195/10 -> 0.9 | R195: 0.00023
L196: 2 | M196: IEC 63 with brake 3000 rpm 0,25 kW | O196: 2750 | P196: 0.25 | Q196: 0.9 | R196: 0.00025
L197: 3 | M197: IEC 63 1500 rpm 0,18 kW | O197: 1360 | P197: 0.18 | Q197: 1.3 | R197: 0.00025
L198: 4 | M198: IEC 63 with brake 1500 rpm 0,18 kW | O198: 1360 | P198: 0.18 | Q198: 1.3 | R198: 0.00035
L199: 5 | M199: IEC71 3000 rpm 0,55 kW | O199: 2760 | P199: 0.55 | Q199: 1.9 | R199: 0.00042
L200: 6 | M200: IEC71 with brake 3000 rpm 0,55 kW | O200: 2760 | P200: 0.55 | Q200: 1.9 | R200: 0.00049
L201: 7 | M201: IEC71 1500 rpm 0,37 kW | O201: 1370 | P201: 0.37 | Q201: 2.6 | R201: 0.00081
L202: 8 | M202: IEC71 with brake 1500 rpm 0,37 kW | O202: 1370 | P202: 0.37 | Q202: 2.6 | R202: 0.00094
L203: 9 | M203: IEC80 3000 rpm 1,1 kW | O203: 2840 | P203: 1.1 | Q203: 3.8 | R203: 0.00098
L204: 10 | M204: IEC80 with brake 3000 rpm 1,1 kW | O204: 2840 | P204: 1.1 | Q204: 3.8 | R204: =0.000061+R203 -> 0.001041
L205: 11 | M205: IEC80 1500 rpm 0,75 kW | O205: 1380 | P205: 0.75 | Q205: 5.3 | R205: 0.001874
L206: 12 | M206: IEC80 with brake 1500 rpm 0,75 kW | O206: 1380 | P206: 0.75 | Q206: 5.3 | R206: =0.000061+R205 -> 0.001935
L207: 13 | M207: IEC90 3000 rpm 2,2 kW | O207: 2860 | P207: 2.2 | Q207: 7.3 | R207: 0.00161
L208: 14 | M208: IEC90 with brake 3000 rpm 2,2 kW | O208: 2850 | P208: 2.2 | Q208: 7.5 | R208: =0.0002+R207 -> 0.00181
L209: 15 | M209: IEC90 1500 rpm 1,5 kW | O209: 1420 | P209: 1.5 | Q209: 10.3 | R209: 0.00280
L210: 16 | M210: IEC90 with brake 1500 rpm 1,5 kW | O210: 1420 | P210: 1.5 | Q210: 10.3 | R210: 0.00410
L211: 17 | M211: IEC100 3000 rpm 3 kW | O211: 2850 | P211: 3 | Q211: 9.9 | R211: 0.0032
L212: 18 | M212: IEC100 with brake 3000 rpm 3 kW | O212: 2850 | P212: 3 | Q212: 9.9 | R212: 0.00427
L213: 19 | M213: IEC100 1500 rpm 3 kW | O213: 1430 | P213: 3 | Q213: 20 | R213: 0.006
L214: 20 | M214: IEC100 with brake 1500 rpm 3 kW | O214: 1430 | P214: 3 | Q214: 20 | R214: 0.0101
L215: 21 | M215: IEC112 3000 rpm 4 kW | O215: 2890 | P215: 4 | Q215: 13.2 | R215: 0.00499
L216: 22 | M216: IEC112 with brake 3000 rpm 4 kW | O216: 2890 | P216: 4 | Q216: 13.2 | R216: 0.0083
L217: 23 | M217: IEC112 1500 rpm 4 kW | O217: 1420 | P217: 4 | Q217: 26.6 | R217: 0.01114
L218: 24 | M218: IEC112 with brake 1500 rpm 4 kW | O218: 1420 | P218: 4 | Q218: 26.6 | R218: 0.02
O221: Hold torque | P221: Inertia
M222: =VLOOKUP($L$262,$L$223:M246,M$162) -> - | N222: =VLOOKUP($L$262,$L$223:N246,N$162) -> 0 | O222: =VLOOKUP($L$262,$L$223:O246,O$162) -> - | P222: =VLOOKUP($L$262,$L$223:P246,P$162) -> -
L223: 1 | M223: KML061 | O223: 1.2 | P223: 2.4e-05
L224: 2 | M224: KML062 | O224: 1.77 | P224: 0.000040
L225: 3 | M225: KML063 | O225: 2.47 | P225: 0.000059
L226: 4 | M226: KML091 | O226: 2.72 | P226: 0.000113
L227: 5 | M227: KML092 | O227: 5.44 | P227: 0.000219
... 53 more rows

Sheet Blad2 (hidden)
B2: Customized profile
A4: Acceleration | C4: =Calculation!C51 -> 1 | D4: m/s2 | I4: =IF((J8+J10)>H6,1,0) -> 0
A5: Deceleration | C5: =C4 -> 1 | D5: m/s2 | I5: =IF(I4=1,J5,C7) -> 1 | J5: =I9*C4 -> 1.224744871
A6: Distance (stroke) | C6: =Calculation!C53 -> 1500 | D6: mm | H6: =C6/1000 -> 1.5
A7: Speed | C7: =Calculation!C50 -> 1 | D7: m/s
A8: Distance for acc. | C8: =1000*H8 -> 500 | D8: mm | H8: =IF(I4=0,J8,I8) -> 0.500 | I8: =H6*C5/(C5+C4) -> 0.75 | J8: =C4*J9*J9/2 -> 0.5
A9: Time for acc. | C9: =IF(I4=0,J9,I9) -> 1.000 | D9: s | I9: =SQRT(2*I8/C4) -> 1.224744871 | J9: =C7/C4 -> 1
A10: Distance for decel. | C10: =H10*1000 -> 500 | D10: mm | H10: =IF(I4=0,J10,I10) -> 0.500 | I10: =H6*C4/(C5+C4) -> 0.75 | J10: =C5*J11*J11/2 -> 0.5
A11: Time for decel. | C11: =IF(I4=0,J11,I11) -> 1.000 | D11: s | I11: =SQRT(2*I10/C5) -> 1.224744871 | J11: =C7/C5 -> 1 | K11: 0 | L11: =H8*1000 -> 500.000 | M11: =L11+H12*1000 -> 1000.000 | N11: =H6*1000 -> 1500
A12: Dist. at const speed | C12: =H12*1000 -> 500 | D12: mm | H12: =H6-H8-H10 -> 0.500 | J12: =IF((H8+H10)>H6,"Du når ej önskad max hastighet"," ") ->  | K12: 0 | L12: =I5 -> 1 | M12: =L12 -> 1 | N12: 0
A13: Time at const speed | C13: =H12/C7 -> 0.500 | D13: s
A14: Cycle time | C14: =IF(I4=0,J14,I14) -> 2.500 | D14: s | I14: =I9+I11 -> 2.449489743 | J14: =C11+C9+C13 -> 2.500
A15: Average speed | C15: =H6/C14 -> 0.600 | D15: m/s
A17: =IF(I4=1,"You will not reach full speed"," ") -> 
A18: =IF(I4=1,"You will reach just"," ") ->  | C18: =IF(I4=1,I9*C4," ") ->  | D18: =IF(I4=1,"m/s"," ") -> 

Sheet Information
A1: Glossary
A3: Stroke | B3: This is the max theoretical stroke of the unit.
B4: Please note that it is important to stop the
B5: movement before reaching end of stroke.
A7: Speed | B7: This is the max speed used during the stroke
A9: Acceleration | B9: Rate of speed change going from a lower to a higher speed
B10: Typically meassured in m/s2
A12: Force / Mass | B12: Example: when you push a box on the floor, you are using a force.
B13: Mass is what you normally call "weight"
B14: The friction between the rolls and the floor is the force at constant speed
B15: When you accelarate the box you will need a bigger force but this will
B16: this software take care of.
F20: Force
G22: Force
B26: If you instead lift the box, you need a force
B27: doing that but don't forget that you are also
B28: moving a mass.
B29: Both force and mass must be inserted
B30: in the calculation.
B32: Example: When you push a car, the mass is about 1000 kg but
C33: the force is perhaps just 200 N.
C34: When you lift the same car, the mass is still 1000 kg but the force is about 10 000 N
C36: Compressing a spring requires a force but the mass is close to zero.
C38: Similar examples are punching holes, extruding, pumping and locking clamps.
A42: load factor fm | B42: Very often the force to the unit is not the same all the time during the stroke.
B43: If the load is lower during some part, this is positive for the life time of ball screw
B44: and ball bearings. The requested max motor power will still be the same.
C46: Guide for selection of fm factor
C47: fm = 1,0 ;The same load in both directions
C48: fm = 0,89 ;Load forward, 75% load back
C49: fm = 0,81 ;Load forward, 50% load back
C50: fm = 0,8 ;Load forward, no load back
C51: fm = 0,63 ;Load 50% of the stroke forward and no load back
B53: This can be calculated from formulas normally found in ball bearing catalogues.
A56: Please note:
A57: Fx, Fy, Fz, Mx, My and Mz are external forces and torques and are not connected with or caused by "Total mass to move"
A58: Forces and torques towards the carriage caused by the weight of mass and accelaration of the mass are
A59: taken care of by the calculations. The orientation of the linear unit and the location of the mass are important for correct answer.
A61: If the mass is carried by external guides or by the carriage/carriages, select correct No or Yes
A64: Calculations at a unit with two carraiges, two units with each one carriage or two units with each two carriages are made as if the carriages are connected with a solid block.
F66: connecing block
A68: One unit | L68: Two units in parallel with each one carriage
J74: Two units in parallel with each two carriages
